[Event "*** SCC Grand Prix: Titled Tuesday Blitz"]
[Site "Chess.com"]
[Date "2020.06.02"]
[Round "6"]
[White "dosto07"]
[Black "zurzan"]
[Result "0-1"]
[WhiteElo "2079"]
[BlackElo "1926"]
[TimeControl "180+1"]
[EndTime "11:10:14 PDT"]
[Termination "zurzan won on time"]

1. e4 {[%clk 0:03:00.9]} 1... Nf6 {[%clk 0:02:58.5]} 2. e5 {[%clk 0:03:00.4]}
2... Nd5 {[%clk 0:02:58.1]} 3. d4 {[%clk 0:02:59.7]} 3... d6 {[%clk 0:02:57.8]}
4. Nf3 {[%clk 0:02:59.6]} 4... g6 {[%clk 0:02:57]} 5. Bc4 {[%clk 0:02:55.3]}
5... Nb6 {[%clk 0:02:56.3]} 6. Bb3 {[%clk 0:02:54.3]} 6... Bg7 {[%clk
0:02:56.4]} 7. Qe2 {[%clk 0:02:49.3]} 7... O-O {[%clk 0:02:55.4]} 8. O-O {[%clk
0:02:45.7]} 8... Bg4 {[%clk 0:02:51.5]} 9. Re1 {[%clk 0:02:42]} 9... dxe5 {[%clk
0:02:45.6]} 10. dxe5 {[%clk 0:02:40.3]} 10... Nc6 {[%clk 0:02:45.2]} 11. h3
{[%clk 0:02:00.4]} 11... Nd4 {[%clk 0:02:36.2]} 12. Qe4 {[%clk 0:01:51.1]} 12...
Bxf3 {[%clk 0:02:32.7]} 13. gxf3 {[%clk 0:01:48.7]} 13... Nxb3 {[%clk
0:02:30.6]} 14. axb3 {[%clk 0:01:46.3]} 14... c6 {[%clk 0:02:29.9]} 15. Nc3
{[%clk 0:01:44]} 15... e6 {[%clk 0:02:27.2]} 16. Qg4 {[%clk 0:01:29.7]} 16...
Nd5 {[%clk 0:02:14.6]} 17. Bg5 {[%clk 0:01:26.5]} 17... Qc7 {[%clk 0:02:01.4]}
18. Nxd5 {[%clk 0:01:23.7]} 18... cxd5 {[%clk 0:02:00.8]} 19. Bf6 {[%clk
0:01:08]} 19... Qxc2 {[%clk 0:01:49.2]} 20. h4 {[%clk 0:01:01.2]} 20... h5
{[%clk 0:01:40.1]} 21. Qg5 {[%clk 0:00:59.9]} 21... Qxb3 {[%clk 0:01:21.8]} 22.
Bxg7 {[%clk 0:00:56.1]} 22... Kxg7 {[%clk 0:01:21.1]} 23. Qf6+ {[%clk
0:00:49.5]} 23... Kg8 {[%clk 0:01:21.2]} 24. Rad1 {[%clk 0:00:45.7]} 24... Qb4
{[%clk 0:01:10.8]} 25. Kg2 {[%clk 0:00:41.4]} 25... Rac8 {[%clk 0:01:05.2]} 26.
Re2 {[%clk 0:00:38.8]} 26... Rc4 {[%clk 0:01:00.7]} 27. Rh1 {[%clk 0:00:37.7]}
27... Rf4 {[%clk 0:00:48.3]} 28. Qg5 {[%clk 0:00:32.6]} 28... Rf5 {[%clk
0:00:48.4]} 29. Qe3 {[%clk 0:00:28.8]} 29... Rc8 {[%clk 0:00:43.2]} 30. Rc1
{[%clk 0:00:24.7]} 30... Rxc1 {[%clk 0:00:42.1]} 31. Qxc1 {[%clk 0:00:24.5]}
31... Qc4 {[%clk 0:00:42.1]} 32. Rc2 {[%clk 0:00:22.3]} 32... Qxh4 {[%clk
0:00:41.8]} 33. Qh6 {[%clk 0:00:17.7]} 33... Qg5+ {[%clk 0:00:41.5]} 34. Qxg5
{[%clk 0:00:16.5]} 34... Rxg5+ {[%clk 0:00:42.4]} 35. Kh3 {[%clk 0:00:13.7]}
35... Rxe5 {[%clk 0:00:43.3]} 36. Rc7 {[%clk 0:00:12.7]} 36... b6 {[%clk
0:00:39.5]} 37. Rxa7 {[%clk 0:00:12.5]} 37... Re2 {[%clk 0:00:39.4]} 38. b4
{[%clk 0:00:11.5]} 38... Rb2 {[%clk 0:00:37.5]} 39. Ra8+ {[%clk 0:00:09.8]}
39... Kg7 {[%clk 0:00:36.1]} 40. f4 {[%clk 0:00:09.6]} 40... Rxb4 {[%clk
0:00:34.9]} 41. Kg3 {[%clk 0:00:08.7]} 41... Rb3+ {[%clk 0:00:32.8]} 42. f3
{[%clk 0:00:08.2]} 42... h4+ {[%clk 0:00:32.2]} 43. Kxh4 {[%clk 0:00:07.1]}
43... Rxf3 {[%clk 0:00:32]} 44. Kg4 {[%clk 0:00:07.6]} 44... Rf1 {[%clk
0:00:26.2]} 45. Rb8 {[%clk 0:00:06.8]} 45... Rb1 {[%clk 0:00:25.2]} 46. Rb7
{[%clk 0:00:06.5]} 46... b5 {[%clk 0:00:24.1]} 47. Kf3 {[%clk 0:00:06.4]} 47...
b4 {[%clk 0:00:24]} 48. Ke3 {[%clk 0:00:06.5]} 48... b3 {[%clk 0:00:24.2]} 49.
Kd2 {[%clk 0:00:06.4]} 49... b2 {[%clk 0:00:24.2]} 50. Kc2 {[%clk 0:00:06.4]}
50... Rf1 {[%clk 0:00:21.9]} 51. Kxb2 {[%clk 0:00:06.3]} 51... Rxf4 {[%clk
0:00:21.8]} 52. Kc3 {[%clk 0:00:06.5]} 52... Rf3+ {[%clk 0:00:20.9]} 53. Kd4
{[%clk 0:00:06.3]} 53... Rf4+ {[%clk 0:00:19.8]} 54. Ke5 {[%clk 0:00:06.2]}
54... Re4+ {[%clk 0:00:20]} 55. Kd6 {[%clk 0:00:05.8]} 55... Kf6 {[%clk
0:00:19.4]} 56. Rb8 {[%clk 0:00:04.6]} 56... g5 {[%clk 0:00:18.9]} 57. Rg8
{[%clk 0:00:03.7]} 57... g4 {[%clk 0:00:18.6]} 58. Kc5 {[%clk 0:00:01.6]} 58...
Kf5 {[%clk 0:00:17.9]} 59. Kd6 {[%clk 0:00:01]} 59... f6 {[%clk 0:00:17.8]} 60.
Rg7 {[%clk 0:00:01.7]} 60... d4 {[%clk 0:00:15.8]} 61. Kc5 {[%clk 0:00:01.8]}
61... d3 {[%clk 0:00:15.4]} 62. Kd6 {[%clk 0:00:01.2]} 62... d2 {[%clk
0:00:15.1]} 0-1

[Event "*** SCC Grand Prix: Titled Tuesday Blitz"]
[Site "Chess.com"]
[Date "2020.06.02"]
[Round "6"]
[White "RitvarsReimanis"]
[Black "Mikhal867"]
[Result "0-1"]
[WhiteElo "2522"]
[BlackElo "2310"]
[TimeControl "180+1"]
[EndTime "11:10:16 PDT"]
[Termination "Mikhal867 won on time"]

1. d4 {[%clk 0:03:00.9]} 1... Nf6 {[%clk 0:02:58.2]} 2. c4 {[%clk 0:03:01.3]}
2... g6 {[%clk 0:02:57.6]} 3. Nc3 {[%clk 0:03:00.9]} 3... Bg7 {[%clk 0:02:57.6]}
4. e4 {[%clk 0:03:01.1]} 4... d6 {[%clk 0:02:57.7]} 5. Be2 {[%clk 0:03:01]} 5...
O-O {[%clk 0:02:57.5]} 6. Nf3 {[%clk 0:03:01.5]} 6... e5 {[%clk 0:02:56.9]} 7.
O-O {[%clk 0:03:00.5]} 7... Nc6 {[%clk 0:02:56.4]} 8. d5 {[%clk 0:03:00.4]} 8...
Ne7 {[%clk 0:02:56.2]} 9. Kh1 {[%clk 0:03:01.3]} 9... a5 {[%clk 0:02:52.1]} 10.
Ne1 {[%clk 0:02:55.1]} 10... Nd7 {[%clk 0:02:51.1]} 11. Nd3 {[%clk 0:02:47.7]}
11... f5 {[%clk 0:02:50.2]} 12. f4 {[%clk 0:02:46.5]} 12... fxe4 {[%clk
0:02:46.4]} 13. Nxe4 {[%clk 0:02:44.7]} 13... Nf5 {[%clk 0:02:46.5]} 14. Ng5
{[%clk 0:02:40.8]} 14... Nc5 {[%clk 0:02:43.8]} 15. fxe5 {[%clk 0:02:38.1]}
15... Nxd3 {[%clk 0:02:41]} 16. Qxd3 {[%clk 0:02:27.5]} 16... Bxe5 {[%clk
0:02:40.8]} 17. Bd2 {[%clk 0:02:20.7]} 17... h6 {[%clk 0:02:32.3]} 18. Ne6
{[%clk 0:02:11.4]} 18... Bxe6 {[%clk 0:02:29.5]} 19. dxe6 {[%clk 0:02:12.3]}
19... Qh4 {[%clk 0:02:28.7]} 20. Qh3 {[%clk 0:02:07.9]} 20... Qxh3 {[%clk
0:02:23.8]} 21. gxh3 {[%clk 0:02:08.8]} 21... Rae8 {[%clk 0:02:17.3]} 22. Bxa5
{[%clk 0:02:04.9]} 22... b6 {[%clk 0:02:15.8]} 23. Bc3 {[%clk 0:02:00.7]} 23...
Bxc3 {[%clk 0:02:12]} 24. bxc3 {[%clk 0:02:01.6]} 24... Rxe6 {[%clk 0:02:11.3]}
25. Bg4 {[%clk 0:01:52.4]} 25... Re3 {[%clk 0:02:01.8]} 26. Rf3 {[%clk
0:01:41.1]} 26... Rxf3 {[%clk 0:01:36]} 27. Bxf3 {[%clk 0:01:42]} 27... Ne3
{[%clk 0:01:35.7]} 28. Be4 {[%clk 0:01:41.5]} 28... Kg7 {[%clk 0:01:35]} 29. Bd3
{[%clk 0:01:23.3]} 29... Rf3 {[%clk 0:01:29.4]} 30. h4 {[%clk 0:01:16.8]} 30...
Rh3 {[%clk 0:01:27.6]} 31. Rg1 {[%clk 0:01:14.4]} 31... Ng4 {[%clk 0:01:18.5]}
32. Rxg4 {[%clk 0:00:50.3]} 32... Rxd3 {[%clk 0:01:17.4]} 33. Re4 {[%clk
0:00:50.5]} 33... Kf6 {[%clk 0:01:14.7]} 34. Rf4+ {[%clk 0:00:50.9]} 34... Ke6
{[%clk 0:01:13.2]} 35. Re4+ {[%clk 0:00:37.8]} 35... Kf5 {[%clk 0:01:12.4]} 36.
Re7 {[%clk 0:00:37.5]} 36... c5 {[%clk 0:01:09.1]} 37. Rf7+ {[%clk 0:00:31.6]}
37... Kg4 {[%clk 0:01:07.7]} 38. Rf6 {[%clk 0:00:31.8]} 38... g5 {[%clk
0:01:00.2]} 39. hxg5 {[%clk 0:00:29.2]} 39... hxg5 {[%clk 0:00:59.6]} 40. Kg2
{[%clk 0:00:28.5]} 40... Rd2+ {[%clk 0:00:59.7]} 41. Kf1 {[%clk 0:00:29]} 41...
Rxh2 {[%clk 0:00:50.6]} 42. Rxd6 {[%clk 0:00:28.6]} 42... Rxa2 {[%clk
0:00:43.5]} 43. Rxb6 {[%clk 0:00:28.9]} 43... Ra4 {[%clk 0:00:43.4]} 44. Ke2
{[%clk 0:00:21.3]} 44... Rxc4 {[%clk 0:00:43.2]} 45. Kd3 {[%clk 0:00:21.9]}
45... Rf4 {[%clk 0:00:42.9]} 46. c4 {[%clk 0:00:17.1]} 46... Kf3 {[%clk
0:00:41.4]} 47. Rb5 {[%clk 0:00:10.8]} 47... Rf5 {[%clk 0:00:39]} 48. Rb1 {[%clk
0:00:09.3]} 48... Kg2 {[%clk 0:00:35.7]} 49. Ke4 {[%clk 0:00:07.5]} 49... Rf8
{[%clk 0:00:32]} 50. Kd5 {[%clk 0:00:04.6]} 50... Rc8 {[%clk 0:00:31.4]} 51.
Rb2+ {[%clk 0:00:02.4]} 51... Kf3 {[%clk 0:00:30.6]} 52. Rb5 {[%clk 0:00:02.8]}
52... g4 {[%clk 0:00:29.8]} 53. Rb7 {[%clk 0:00:01.5]} 53... g3 {[%clk
0:00:28.6]} 54. Rf7+ {[%clk 0:00:02.4]} 54... Ke2 {[%clk 0:00:27.8]} 55. Re7+
{[%clk 0:00:02.2]} 55... Kf2 {[%clk 0:00:27.6]} 56. Rf7+ {[%clk 0:00:02.8]}
56... Kg1 {[%clk 0:00:27.2]} 57. Ke4 {[%clk 0:00:03.2]} 57... Rg8 {[%clk
0:00:20.3]} 58. Kd5 {[%clk 0:00:02.5]} 58... Rg5+ {[%clk 0:00:18.9]} 59. Ke4
{[%clk 0:00:03]} 59... g2 {[%clk 0:00:17]} 60. Ke3 {[%clk 0:00:02.9]} 60... Kh2
{[%clk 0:00:15.9]} 61. Rh7+ {[%clk 0:00:01.7]} 61... Kg3 {[%clk 0:00:15.8]} 0-1

[Event "*** SCC Grand Prix: Titled Tuesday Blitz"]
[Site "Chess.com"]
[Date "2020.06.02"]
[Round "6"]
[White "Klavdia_Nik"]
[Black "czasnaszachy"]
[Result "0-1"]
[WhiteElo "2051"]
[BlackElo "2345"]
[TimeControl "180+1"]
[EndTime "11:10:16 PDT"]
[Termination "czasnaszachy won on time"]

1. Nf3 {[%clk 0:02:29.6]} 1... Nf6 {[%clk 0:02:55]} 2. c4 {[%clk 0:02:29.9]}
2... g6 {[%clk 0:02:52.3]} 3. b3 {[%clk 0:02:30]} 3... Bg7 {[%clk 0:02:52.1]} 4.
Bb2 {[%clk 0:02:30.6]} 4... O-O {[%clk 0:02:52.6]} 5. g3 {[%clk 0:02:31]} 5...
d6 {[%clk 0:02:46.3]} 6. d4 {[%clk 0:02:30.3]} 6... Nbd7 {[%clk 0:02:21.2]} 7.
d5 {[%clk 0:02:29.1]} 7... e5 {[%clk 0:02:17.4]} 8. dxe6 {[%clk 0:02:28.9]} 8...
fxe6 {[%clk 0:02:17.4]} 9. Bg2 {[%clk 0:02:29.5]} 9... e5 {[%clk 0:02:12]} 10.
O-O {[%clk 0:02:29.8]} 10... Nc5 {[%clk 0:02:09.1]} 11. Nc3 {[%clk 0:02:29.4]}
11... Bf5 {[%clk 0:02:03.6]} 12. Nh4 {[%clk 0:02:24]} 12... Be6 {[%clk
0:01:58.4]} 13. Nd5 {[%clk 0:02:14.9]} 13... c6 {[%clk 0:01:22.6]} 14. Nxf6+
{[%clk 0:02:04.5]} 14... Bxf6 {[%clk 0:01:22.1]} 15. Nf3 {[%clk 0:02:05.1]}
15... Qd7 {[%clk 0:01:18.4]} 16. Re1 {[%clk 0:01:28.5]} 16... Rad8 {[%clk
0:01:16]} 17. Qc2 {[%clk 0:01:20.6]} 17... Bh3 {[%clk 0:01:03.6]} 18. Bh1 {[%clk
0:01:17.1]} 18... e4 {[%clk 0:00:21.9]} 19. Nd4 {[%clk 0:01:05]} 19... Bf5
{[%clk 0:00:12.1]} 20. Nxf5 {[%clk 0:00:44.8]} 20... gxf5 {[%clk 0:00:11.8]} 21.
f4 {[%clk 0:00:37.2]} 21... Ne6 {[%clk 0:00:10.6]} 22. e3 {[%clk 0:00:34.8]}
22... Bxb2 {[%clk 0:00:10.4]} 23. Qxb2 {[%clk 0:00:34.4]} 23... Qg7 {[%clk
0:00:11.1]} 24. Qxg7+ {[%clk 0:00:29.5]} 24... Kxg7 {[%clk 0:00:12]} 25. Rad1
{[%clk 0:00:24.7]} 25... Nc5 {[%clk 0:00:12.2]} 26. Bg2 {[%clk 0:00:23.1]} 26...
Nd3 {[%clk 0:00:12.3]} 27. Re2 {[%clk 0:00:23.5]} 27... d5 {[%clk 0:00:12.6]}
28. cxd5 {[%clk 0:00:15.2]} 28... Rxd5 {[%clk 0:00:12.4]} 29. Red2 {[%clk
0:00:13.9]} 29... Rfd8 {[%clk 0:00:12.7]} 30. Bf1 {[%clk 0:00:14.3]} 30... Nb4
{[%clk 0:00:08.5]} 31. Rxd5 {[%clk 0:00:12]} 31... Nxd5 {[%clk 0:00:07.9]} 32.
Kf2 {[%clk 0:00:09.9]} 32... Kf6 {[%clk 0:00:07.4]} 33. Bc4 {[%clk 0:00:10.2]}
33... h5 {[%clk 0:00:06]} 34. h3 {[%clk 0:00:08.8]} 34... h4 {[%clk 0:00:04.2]}
35. g4 {[%clk 0:00:08.5]} 35... fxg4 {[%clk 0:00:04.2]} 36. hxg4 {[%clk
0:00:08.8]} 36... Ke6 {[%clk 0:00:04.5]} 37. Rh1 {[%clk 0:00:08.1]} 37... Rh8
{[%clk 0:00:04.2]} 38. Ke2 {[%clk 0:00:06.5]} 38... b5 {[%clk 0:00:04.2]} 39.
Bxd5+ {[%clk 0:00:05.7]} 39... cxd5 {[%clk 0:00:04.7]} 40. Kf2 {[%clk
0:00:05.4]} 40... Rc8 {[%clk 0:00:04.4]} 41. Rxh4 {[%clk 0:00:04.8]} 41... Rc2+
{[%clk 0:00:05.1]} 42. Kg3 {[%clk 0:00:04.8]} 42... Rxa2 {[%clk 0:00:05.2]} 43.
Rh6+ {[%clk 0:00:05.2]} 43... Ke7 {[%clk 0:00:05.4]} 44. Rh7+ {[%clk 0:00:03.4]}
44... Ke6 {[%clk 0:00:05]} 45. Rh6+ {[%clk 0:00:03.9]} 45... Ke7 {[%clk
0:00:04.6]} 46. g5 {[%clk 0:00:04.3]} 46... Re2 {[%clk 0:00:04.1]} 47. Kg4
{[%clk 0:00:04.6]} 47... Rxe3 {[%clk 0:00:04.4]} 48. Kf5 {[%clk 0:00:04.6]}
48... Rg3 {[%clk 0:00:02.6]} 49. Rh7+ {[%clk 0:00:03.9]} 49... Ke8 {[%clk
0:00:01.8]} 50. Rxa7 {[%clk 0:00:03.5]} 50... e3 {[%clk 0:00:01.8]} 51. Ra8+
{[%clk 0:00:01.9]} 51... Ke7 {[%clk 0:00:01.7]} 52. Ra7+ {[%clk 0:00:02.2]}
52... Kd6 {[%clk 0:00:01.8]} 53. Ra6+ {[%clk 0:00:01.9]} 53... Kc5 {[%clk
0:00:02]} 54. Re6 {[%clk 0:00:01.8]} 54... d4 {[%clk 0:00:02.4]} 0-1

[Event "*** SCC Grand Prix: Titled Tuesday Blitz"]
[Site "Chess.com"]
[Date "2020.06.02"]
[Round "6"]
[White "Niclox"]
[Black "Sanan_Sjugirov"]
[Result "1/2-1/2"]
[WhiteElo "2681"]
[BlackElo "2903"]
[TimeControl "180+1"]
[EndTime "11:10:17 PDT"]
[Termination "Game drawn - insufficient material"]

1. e4 {[%clk 0:03:00.2]} 1... c5 {[%clk 0:02:59.6]} 2. Nf3 {[%clk 0:02:58]} 2...
d6 {[%clk 0:02:59.8]} 3. Bc4 {[%clk 0:02:57.5]} 3... Nf6 {[%clk 0:02:58.9]} 4.
e5 {[%clk 0:02:57.5]} 4... dxe5 {[%clk 0:02:57.9]} 5. Nxe5 {[%clk 0:02:58.4]}
5... e6 {[%clk 0:02:56.5]} 6. Qe2 {[%clk 0:02:58.7]} 6... Be7 {[%clk 0:02:41.6]}
7. O-O {[%clk 0:02:58.1]} 7... O-O {[%clk 0:02:40.5]} 8. Re1 {[%clk 0:02:58]}
8... Bd7 {[%clk 0:01:54.5]} 9. b3 {[%clk 0:02:56.2]} 9... Nc6 {[%clk 0:01:52.3]}
10. Bb2 {[%clk 0:02:56.6]} 10... Nxe5 {[%clk 0:01:50.3]} 11. Bxe5 {[%clk
0:02:53.2]} 11... Bc6 {[%clk 0:01:50.4]} 12. a4 {[%clk 0:02:51.1]} 12... Nd5
{[%clk 0:01:47.3]} 13. Nc3 {[%clk 0:02:45.1]} 13... Bf6 {[%clk 0:01:32.6]} 14.
Bxf6 {[%clk 0:02:44.5]} 14... Qxf6 {[%clk 0:01:32]} 15. Ne4 {[%clk 0:02:43]}
15... Qg6 {[%clk 0:01:28.1]} 16. Bxd5 {[%clk 0:02:30.5]} 16... Bxd5 {[%clk
0:01:27.1]} 17. d3 {[%clk 0:02:30.2]} 17... Rac8 {[%clk 0:01:19.4]} 18. f3
{[%clk 0:02:28.4]} 18... Bxe4 {[%clk 0:01:13.3]} 19. Qxe4 {[%clk 0:02:23.9]}
19... Rc7 {[%clk 0:01:08.8]} 20. a5 {[%clk 0:02:18.2]} 20... Rd8 {[%clk
0:01:01.7]} 21. Qxg6 {[%clk 0:02:04.3]} 21... hxg6 {[%clk 0:01:01.3]} 22. Kf2
{[%clk 0:02:05.2]} 22... Kf8 {[%clk 0:00:54]} 23. Re4 {[%clk 0:02:02.3]} 23...
Ke7 {[%clk 0:00:45.2]} 24. h4 {[%clk 0:02:01.1]} 24... b5 {[%clk 0:00:33.5]} 25.
axb6 {[%clk 0:01:56]} 25... axb6 {[%clk 0:00:33.8]} 26. Ra6 {[%clk 0:01:56.9]}
26... Rb8 {[%clk 0:00:33.5]} 27. Rea4 {[%clk 0:01:55]} 27... Kd6 {[%clk
0:00:32.9]} 28. Ke3 {[%clk 0:01:52.2]} 28... Kc6 {[%clk 0:00:27.4]} 29. g3
{[%clk 0:01:52.5]} 29... Rd7 {[%clk 0:00:26.4]} 30. b4 {[%clk 0:01:50.9]} 30...
cxb4 {[%clk 0:00:21.1]} 31. Rxb4 {[%clk 0:01:51.8]} 31... Rd5 {[%clk 0:00:18.9]}
32. Ra7 {[%clk 0:01:46.4]} 32... Rb7 {[%clk 0:00:13]} 33. Rxb7 {[%clk
0:01:46.5]} 33... Kxb7 {[%clk 0:00:13.1]} 34. c4 {[%clk 0:01:47.4]} 34... Ra5
{[%clk 0:00:12.5]} 35. Rb5 {[%clk 0:01:45.3]} 35... Ra1 {[%clk 0:00:04.6]} 36.
c5 {[%clk 0:01:41.4]} 36... Ra6 {[%clk 0:00:04.5]} 37. Kf4 {[%clk 0:01:02.7]}
37... Kc6 {[%clk 0:00:04.4]} 38. Rxb6+ {[%clk 0:01:02.5]} 38... Rxb6 {[%clk
0:00:05]} 39. cxb6 {[%clk 0:01:03.4]} 39... Kxb6 {[%clk 0:00:05.9]} 40. Ke5
{[%clk 0:01:03.4]} 40... Kc6 {[%clk 0:00:05.9]} 41. d4 {[%clk 0:01:03.6]} 41...
Kd7 {[%clk 0:00:06]} 42. d5 {[%clk 0:01:02.4]} 42... f6+ {[%clk 0:00:06.3]} 43.
Kd4 {[%clk 0:00:57.2]} 43... Kd6 {[%clk 0:00:07.2]} 44. dxe6 {[%clk 0:00:53.8]}
44... Kxe6 {[%clk 0:00:08.1]} 45. Ke4 {[%clk 0:00:54.7]} 45... Kd6 {[%clk
0:00:07.2]} 46. g4 {[%clk 0:00:52.8]} 46... Ke6 {[%clk 0:00:07.1]} 47. Kf4
{[%clk 0:00:49.8]} 47... Kd6 {[%clk 0:00:06.5]} 48. h5 {[%clk 0:00:46.4]} 48...
gxh5 {[%clk 0:00:06.5]} 49. gxh5 {[%clk 0:00:47.3]} 49... Ke6 {[%clk 0:00:06.9]}
50. Ke4 {[%clk 0:00:44.8]} 50... f5+ {[%clk 0:00:06]} 51. Kd4 {[%clk 0:00:43.2]}
51... Kf6 {[%clk 0:00:04.5]} 52. f4 {[%clk 0:00:41.8]} 52... g5 {[%clk
0:00:04.5]} 53. hxg6 {[%clk 0:00:29.3]} 53... Kxg6 {[%clk 0:00:04.5]} 54. Ke5
{[%clk 0:00:30.2]} 54... Kg7 {[%clk 0:00:04.9]} 55. Ke6 {[%clk 0:00:26.8]} 55...
Kg6 {[%clk 0:00:05.1]} 56. Ke5 {[%clk 0:00:17.5]} 56... Kg7 {[%clk 0:00:05.3]}
57. Kxf5 {[%clk 0:00:17.4]} 57... Kf7 {[%clk 0:00:05.6]} 58. Kg5 {[%clk
0:00:17.5]} 58... Kg7 {[%clk 0:00:05.8]} 59. f5 {[%clk 0:00:17.5]} 59... Kf7
{[%clk 0:00:06]} 60. f6 {[%clk 0:00:17.7]} 60... Kf8 {[%clk 0:00:06.2]} 61. Kf5
{[%clk 0:00:17.7]} 61... Kf7 {[%clk 0:00:06.3]} 62. Ke5 {[%clk 0:00:18.6]} 62...
Kf8 {[%clk 0:00:06.5]} 63. Ke6 {[%clk 0:00:19.5]} 63... Ke8 {[%clk 0:00:06.7]}
64. f7+ {[%clk 0:00:19.6]} 64... Kf8 {[%clk 0:00:06.9]} 65. Kd5 {[%clk
0:00:20.2]} 65... Kxf7 {[%clk 0:00:07]} 1/2-1/2

[Event "*** SCC Grand Prix: Titled Tuesday Blitz"]
[Site "Chess.com"]
[Date "2020.06.02"]
[Round "6"]
[White "vinniethepooh"]
[Black "Dmitry_M1"]
[Result "1-0"]
[WhiteElo "2586"]
[BlackElo "2383"]
[TimeControl "180+1"]
[EndTime "11:10:17 PDT"]
[Termination "vinniethepooh won by resignation"]

1. d4 {[%clk 0:03:00.9]} 1... Nf6 {[%clk 0:02:58.9]} 2. c4 {[%clk 0:03:01.2]}
2... c5 {[%clk 0:02:59]} 3. d5 {[%clk 0:02:59.9]} 3... e5 {[%clk 0:02:59.6]} 4.
Nc3 {[%clk 0:02:59.9]} 4... d6 {[%clk 0:02:59.9]} 5. e4 {[%clk 0:02:51.7]} 5...
Be7 {[%clk 0:03:00.4]} 6. Bd3 {[%clk 0:02:52.1]} 6... O-O {[%clk 0:02:59.7]} 7.
Nge2 {[%clk 0:02:52.6]} 7... Ne8 {[%clk 0:02:59.7]} 8. O-O {[%clk 0:02:51.8]}
8... Bg5 {[%clk 0:02:59.4]} 9. Be3 {[%clk 0:02:46.5]} 9... Nd7 {[%clk
0:02:43.1]} 10. Qd2 {[%clk 0:02:45]} 10... Bxe3 {[%clk 0:02:42.5]} 11. Qxe3
{[%clk 0:02:43.6]} 11... a6 {[%clk 0:02:37.1]} 12. h3 {[%clk 0:02:42.2]} 12...
Rb8 {[%clk 0:02:33.2]} 13. a4 {[%clk 0:02:40.1]} 13... b6 {[%clk 0:02:33]} 14.
Ng3 {[%clk 0:02:34.3]} 14... g6 {[%clk 0:02:32.3]} 15. Rfb1 {[%clk 0:02:27.7]}
15... Ng7 {[%clk 0:02:16.5]} 16. Nge2 {[%clk 0:02:05.4]} 16... f5 {[%clk
0:02:13.2]} 17. exf5 {[%clk 0:01:58.5]} 17... gxf5 {[%clk 0:02:14.1]} 18. f4
{[%clk 0:01:57.6]} 18... e4 {[%clk 0:01:51]} 19. Bc2 {[%clk 0:01:55.3]} 19... a5
{[%clk 0:01:44.8]} 20. Kh2 {[%clk 0:01:48.1]} 20... Nf6 {[%clk 0:01:44.5]} 21.
Rg1 {[%clk 0:01:47.8]} 21... h5 {[%clk 0:01:39.4]} 22. Nd1 {[%clk 0:01:40.6]}
22... Kf7 {[%clk 0:01:38.2]} 23. Nf2 {[%clk 0:01:40.5]} 23... Rh8 {[%clk
0:01:38.3]} 24. Rgd1 {[%clk 0:01:35]} 24... Bd7 {[%clk 0:01:04.2]} 25. b3 {[%clk
0:01:33.4]} 25... Be8 {[%clk 0:00:58.8]} 26. Kg1 {[%clk 0:01:32.8]} 26... Bd7
{[%clk 0:00:55.5]} 27. Kf1 {[%clk 0:01:33.1]} 27... Qe7 {[%clk 0:00:52.4]} 28.
Ke1 {[%clk 0:01:33.4]} 28... Ke8 {[%clk 0:00:52.6]} 29. Kd2 {[%clk 0:01:33.8]}
29... Kd8 {[%clk 0:00:53]} 30. Kc1 {[%clk 0:01:30.7]} 30... Kc7 {[%clk
0:00:53.5]} 31. Kb2 {[%clk 0:01:31.3]} 31... Rbg8 {[%clk 0:00:51.2]} 32. Rg1
{[%clk 0:01:31.6]} 32... h4 {[%clk 0:00:44.8]} 33. g4 {[%clk 0:01:16.4]} 33...
hxg3 {[%clk 0:00:38.9]} 34. Nxg3 {[%clk 0:01:01.4]} 34... Ngh5 {[%clk
0:00:37.9]} 35. Nxh5 {[%clk 0:00:54.3]} 35... Nxh5 {[%clk 0:00:37.2]} 36. Raf1
{[%clk 0:00:38.9]} 36... Qf6+ {[%clk 0:00:36.6]} 37. Ka2 {[%clk 0:00:38.5]}
37... Qh4 {[%clk 0:00:34]} 38. Nd1 {[%clk 0:00:31.1]} 38... Nf6 {[%clk
0:00:25.2]} 39. Rg5 {[%clk 0:00:14.6]} 39... Qxh3 {[%clk 0:00:21.7]} 40. Rfg1
{[%clk 0:00:13.1]} 40... Ng4 {[%clk 0:00:17.7]} 41. Qxh3 {[%clk 0:00:11.4]}
41... Rxh3 {[%clk 0:00:15.8]} 42. Rxg8 {[%clk 0:00:11.8]} 42... Rh2 {[%clk
0:00:10.8]} 43. Kb1 {[%clk 0:00:12.1]} 43... e3 {[%clk 0:00:11.3]} 44. R8xg4
{[%clk 0:00:03.4]} 44... fxg4 {[%clk 0:00:10.7]} 45. Nxe3 {[%clk 0:00:04]} 45...
Re2 {[%clk 0:00:04.7]} 46. Nxg4 {[%clk 0:00:03.7]} 46... Rd2 {[%clk 0:00:02.1]}
47. f5 {[%clk 0:00:03.9]} 47... Rd4 {[%clk 0:00:02.4]} 48. f6 {[%clk 0:00:04]}
48... Rf4 {[%clk 0:00:02.8]} 49. Ne3 {[%clk 0:00:02.6]} 49... Rxf6 {[%clk
0:00:02]} 50. Rf1 {[%clk 0:00:03.2]} 50... Rf4 {[%clk 0:00:02.7]} 51. Rxf4
{[%clk 0:00:03.2]} 51... Kd8 {[%clk 0:00:03.2]} 52. Kb2 {[%clk 0:00:04.1]} 52...
Ke7 {[%clk 0:00:04.1]} 53. Kc3 {[%clk 0:00:05]} 53... Bf5 {[%clk 0:00:04.8]} 54.
Ng2 {[%clk 0:00:05.9]} 54... Bxc2 {[%clk 0:00:05]} 55. Kxc2 {[%clk 0:00:06.8]}
55... Kd7 {[%clk 0:00:05.7]} 56. Kd3 {[%clk 0:00:07.7]} 56... Ke7 {[%clk
0:00:06.6]} 57. Ke4 {[%clk 0:00:08.6]} 57... Kd7 {[%clk 0:00:07.5]} 58. Kf5
{[%clk 0:00:09.2]} 58... Ke7 {[%clk 0:00:08.4]} 59. Kg6 {[%clk 0:00:10.1]} 59...
Kd7 {[%clk 0:00:09.3]} 1-0